bitfinex/quotes_ETHUSD_20250726
["timestamp","ask_amount","ask_price","bid_price","bid_amount"]
[1753496748960,0.4742,3748.7,3748.2,2.66793943]
[1753496749159,0.4742,3748.7,3747.9,2.66816083]
[1753496749160,0.4742,3748.7,3748.3,2.66787509]
[1753496749364,0.4742,3748.7,3748.2,2.66793632]
[1753496749527,0.4742,3748.7,3748.1,2.66800362]
[1753496750147,0.4742,3748.7,3747.9,2.933]
[1753496750461,0.03334578,3748.6,3748.0,2.66802294]
[1753496750644,0.03334578,3748.6,3747.9,2.929]
[1753496750645,0.03334578,3748.6,3748.1,2.66800829]
[1753496750845,0.4742,3748.7,3748.1,2.66800829]
[1753496751035,0.03334578,3748.6,3748.0,2.66806967]
[1753496751236,5.60107627,3749.5,3748.1,0.01268934]
[1753496751237,1.2495,3749.3,3748.1,0.01268934]
[1753496751448,0.1336,3748.9,3748.4,2.8013551]
[1753496751651,0.945244,3748.8,3748.1,2.66796708]
[1753496751960,0.1336,3748.5,3748.2,2.66794455]
[1753496752161,0.1336,3748.5,3748.1,2.922]
[1753496752361,0.1336,3748.5,3748.3,2.66782203]
[1753496752865,0.7685,3749.3,3748.4,0.95338688]
[1753496753051,0.1336,3749.1,3748.5,2.918]
[1753496753252,0.1336,3749.1,3749.0,2.66737796]
[1753496754475,0.9021,3749.3,3749.2,2.66723567]
[1753496754763,0.7866,3749.7,3749.3,2.66716453]
[1753496754978,0.41627418,3749.4,3749.3,2.66716453]
[1753496756564,0.41627418,3749.4,3749.3,3.16176453]
[1753496756762,0.41627418,3749.4,3749.3,2.66716453]
[1753496757133,0.41627418,3749.4,3749.3,5.57616453]
[1753496757332,0.28267418,3749.4,3749.3,3.29536453]
[1753496757649,0.28267418,3749.4,3749.3,5.70476453]
[1753496758044,0.28267418,3749.4,3749.3,2.80076453]
[1753496759364,0.28267418,3749.4,3749.3,2.901]
[1753496759567,0.28267418,3749.4,3749.3,5.56816453]
[1753496760071,0.28267418,3749.4,3749.3,6.06276453]
[1753496760270,0.28267418,3749.4,3749.3,5.69776453]
[1753496760638,0.28267418,3749.4,3749.3,2.80076453]
[1753496760937,1.10807418,3749.4,3749.3,0.1336]
[1753496761138,1.10807418,3749.4,3749.3,2.896]
[1753496762069,2.01997418,3749.4,3749.2,4.2]
[1753496762443,1.58907418,3749.4,3749.2,4.2]
[1753496762642,1.10807418,3749.4,3749.2,4.2]
[1753496764171,1.10807418,3749.4,3749.0,0.1336]
[1753496764362,3.61242468,3749.3,3748.7,2.882]
[1753496764678,2.80110989,3748.9,3748.3,3.0156]
[1753496764851,3.14854385,3748.8,3748.3,0.1336]
[1753496765356,3.0982903,3749.0,3748.1,2.882]
[1753496765357,0.8256,3748.6,3748.1,2.882]
[1753496765555,0.8256,3748.6,3748.1,3.0156]
[1753496765556,0.9592,3748.6,3748.1,3.0156]
[1753496766149,1.4402,3748.6,3748.1,3.0156]
[1753496766345,0.9119,3748.5,3748.1,0.1336]
[1753496766858,0.9592,3748.6,3748.1,0.1336]
[1753496767667,0.9592,3748.6,3748.1,3.29615789]
[1753496767884,0.4309,3748.8,3748.1,3.29615789]
[1753496767885,1.3066,3749.2,3748.3,2.6678761]
[1753496768085,0.1336,3748.9,3748.3,0.1336]
[1753496768280,0.8256,3749.2,3748.4,0.4946]
[1753496768468,0.1336,3749.0,3748.5,0.1336]
[1753496768672,0.1336,3749.0,3748.5,1.0743]
[1753496768984,0.1336,3749.0,3748.5,0.6282]
[1753496769374,0.1336,3749.0,3748.5,3.2958643]
[1753496769686,0.1336,3749.0,3748.7,2.66757128]
[1753496769850,0.1336,3749.0,3748.6,0.9407]
[1753496770055,0.1336,3749.0,3748.6,0.4946]
[1753496770577,0.6146,3749.0,3748.4,2.66778304]
[1753496770893,3.28199603,3749.0,3748.4,0.1336]
[1753496771097,3.28198627,3749.0,3748.4,0.1336]
[1753496771263,0.03334311,3748.9,3748.1,2.66797]
[1753496771464,0.1336,3748.6,3748.1,0.1336]
[1753496771786,0.6146,3748.6,3748.1,0.1336]
[1753496772751,3.14873376,3748.5,3747.7,2.859]
[1753496772954,3.14873376,3748.5,3747.9,0.1336]
[1753496773564,0.481,3748.5,3747.9,0.1336]
[1753496773770,0.1336,3748.1,3747.6,0.1336]
[1753496774165,0.1336,3748.1,3747.7,2.66830322]
[1753496774489,0.1336,3748.1,3747.9,2.66815689]
[1753496774659,0.1336,3748.1,3747.7,0.4946]
[1753496775014,0.1336,3748.6,3748.4,2.66776591]
[1753496775180,0.1336,3748.6,3748.4,0.9407]
[1753496775375,0.1336,3748.6,3748.3,2.66785641]
[1753496775789,0.1336,3748.6,3748.2,2.66793011]
[1753496776296,0.1336,3748.6,3748.0,3.74238876]
[1753496776297,0.6146,3748.6,3748.0,0.6282]
[1753496776479,0.6146,3748.6,3748.1,2.66801328]
[1753496776664,0.481,3748.5,3748.1,2.66801328]
[1753496777004,0.481,3748.4,3748.0,0.1336]
[1753496777301,0.1336,3748.3,3747.8,2.6681838]
[1753496777679,0.6146,3748.3,3747.7,2.80187959]
[1753496778065,0.481,3748.6,3747.6,0.4946]
[1753496778270,0.1336,3748.1,3747.7,2.66824955]
[1753496778466,0.1336,3748.1,3747.7,3.16284955]
[1753496778822,0.1336,3748.1,3747.7,0.9407]
[1753496779305,0.7659,3748.0,3747.5,2.66843376]
[1753496779472,0.7659,3748.0,3747.5,3.29663376]
[1753496779801,0.1336,3747.9,3747.5,0.4946]
[1753496780111,0.1336,3747.9,3747.5,0.9407]
[1753496780602,0.4564,3747.8,3747.3,0.1336]
[1753496780811,0.1336,3747.9,3747.8,2.66823202]
[1753496781010,0.7659,3748.0,3747.8,2.66823202]
[1753496781011,0.7659,3748.4,3747.8,3.63013202]
[1753496781325,0.1336,3748.0,3747.8,3.63013202]
[1753496781512,0.1336,3748.0,3747.8,0.9619]
[1753496781668,0.7659,3748.4,3747.9,0.9619]
[1753496781874,0.7659,3748.9,3748.4,2.6677832]
[1753496782079,0.7659,3748.9,3748.4,3.62969175]
[1753496782317,0.1336,3748.6,3748.4,0.9619]
[1753496782511,0.1336,3748.6,3748.4,3.62969405]
[1753496782718,0.1336,3748.6,3748.4,0.9619]
[1753496783022,0.1336,3748.6,3748.1,0.6217]
[1753496783829,0.7659,3748.4,3747.7,4.2]
[1753496784023,0.1336,3748.1,3747.7,6.86829987]
[1753496784321,0.1336,3748.1,3747.8,2.66817025]
[1753496784520,0.1336,3748.1,3747.7,0.4881]
[1753496784819,0.1336,3748.1,3748.0,2.66808964]
[1753496785121,0.1336,3748.1,3747.9,2.66815331]
[1753496785311,0.1336,3748.1,3747.8,2.66816335]
[1753496785625,0.1336,3748.1,3748.0,2.66808964]
[1753496785820,0.7659,3748.4,3748.1,2.66795642]
[1753496786032,0.1336,3748.3,3748.2,0.4881]
[1753496786235,0.1336,3748.3,3748.2,3.15604728]
[1753496787390,0.1336,3748.3,3748.2,2.66794728]
[1753496789013,0.1336,3748.3,3748.1,2.66801486]
[1753496789846,0.1336,3748.3,3748.1,2.66800383]
[1753496790001,0.1336,3748.3,3748.2,2.66794728]
[1753496790208,0.1336,3748.7,3748.2,3.62983166]
[1753496790409,0.16694489,3748.7,3748.2,3.15603166]
[1753496790853,0.16694489,3748.7,3748.2,2.66793166]
[1753496791006,0.4564,3748.6,3748.3,2.66786583]
[1753496791207,0.4564,3748.6,3748.2,2.66792583]
[1753496791407,0.48974667,3748.5,3748.0,4.2]
[1753496791608,0.1336,3748.3,3748.0,4.2]
[1753496791936,0.4564,3748.2,3748.0,4.2]
[1753496792451,0.1336,3748.3,3748.0,4.2]
[1753496794040,0.1336,3748.3,3747.8,0.4881]
[1753496794243,2.80149326,3748.3,3747.8,0.4881]
[1753496794419,0.1336,3748.3,3747.8,0.4881]
[1753496794619,0.1336,3748.3,3747.9,0.4881]
[1753496795019,2.80150756,3748.3,3747.9,0.4881]
[1753496795204,2.66795519,3748.2,3747.8,0.4738]
[1753496795403,3.43025972,3748.8,3747.6,0.4881]
[1753496795603,0.1336,3748.0,3747.6,0.4881]
[1753496795839,0.7584,3747.9,3747.5,0.1336]
[1753496796009,0.7584,3747.9,3747.4,0.1336]
[1753496796209,0.7584,3747.9,3747.4,1.0955]
[1753496796950,0.7584,3747.9,3747.4,3.76400221]
[1753496797332,0.7584,3747.9,3747.5,0.4881]
[1753496797855,0.7584,3747.9,3747.4,3.27590221]
[1753496798154,0.7584,3747.9,3747.5,0.4881]
[1753496798656,0.7584,3747.9,3747.5,0.9619]
[1753496801058,0.7584,3747.9,3747.4,0.1336]
[1753496801246,0.1669529,3747.8,3747.2,0.6217]
[1753496801447,0.1336,3747.8,3747.2,0.4881]
[1753496801777,0.1336,3747.8,3747.2,3.15669674]
[1753496802070,0.1336,3747.8,3747.2,3.63049674]
[1753496802874,0.1336,3747.8,3747.2,0.9619]
[1753496803037,0.1336,3747.8,3747.2,3.63054384]
[1753496803242,0.1336,3747.8,3747.3,2.66858594]
[1753496803455,0.1336,3747.8,3747.2,3.63055003]
[1753496803842,2.80184747,3747.8,3747.2,0.9619]
[1753496804056,0.4564,3747.8,3747.2,0.9619]
[1753496804255,0.1336,3747.5,3747.2,0.9619]
[1753496804473,0.1336,3747.5,3747.1,4.2]
[1753496804842,0.1336,3747.5,3747.1,4.6881]
[1753496805160,0.1336,3747.5,3747.1,7.83062329]
[1753496805737,0.03335646,3747.4,3747.1,5.1619]
[1753496805943,0.1336,3747.3,3747.1,0.9619]
[1753496806247,0.1336,3747.3,3747.1,3.63061626]
[1753496806446,0.1336,3747.3,3747.2,2.66865926]
[1753496806653,0.1336,3747.3,3747.1,0.9619]
[1753496806654,0.1336,3747.3,3747.1,3.63061072]
[1753496806855,0.1336,3747.3,3746.8,0.9619]
[1753496807059,0.03335824,3747.2,3746.8,0.9619]
[1753496807474,0.1336,3747.3,3746.8,0.9619]
[1753496807776,0.7584,3747.9,3747.2,3.9786015]
[1753496807956,3.44333376,3748.5,3747.8,2.6682067]
[1753496808153,0.7756,3748.5,3747.9,2.66816083]
[1753496808764,2.66804977,3748.1,3747.4,3.15655986]
[1753496809280,3.12436602,3748.2,3747.4,3.15655986]
[1753496809577,3.12436602,3748.2,3747.5,2.66843915]
[1753496809881,5.94036602,3748.2,3747.5,2.66843915]
[1753496810046,5.94035917,3748.2,3747.5,2.66842789]
[1753496810378,0.03335023,3748.1,3747.5,2.66842789]
[1753496812381,0.03335023,3748.1,3747.5,2.66843762]
[1753496812583,2.70139345,3748.1,3747.4,3.1566124]
[1753496812781,2.66814015,3748.0,3747.4,0.4881]
[1753496812948,0.03335023,3748.1,3747.4,0.4881]
[1753496812949,0.80895201,3747.9,3747.4,0.4881]
[1753496813153,0.80895201,3747.9,3747.4,2.66851256]
[1753496813365,0.7756,3747.9,3747.4,0.9515]
[1753496814357,3.44376658,3747.9,3747.4,0.9515]
[1753496815187,3.89836658,3747.9,3747.4,0.9515]
[1753496815791,2.66831673,3747.7,3747.4,0.4816]
[1753496816090,3.12285095,3747.8,3747.4,0.4816]
[1753496816397,2.66832333,3747.7,3747.1,0.4699]
[1753496816591,2.66832333,3747.7,3747.1,0.9515]
[1753496816794,0.4546,3747.8,3747.1,0.9515]
[1753496816795,3.122851,3747.8,3747.1,0.9515]
[1753496817394,2.6683103,3747.7,3747.0,2.6687912]
[1753496817592,2.814,3747.6,3746.9,4.6816]
[1753496817890,0.1336,3747.3,3746.9,0.4816]
[1753496818089,0.1336,3747.3,3747.0,2.66873878]
[1753496818389,0.1336,3747.3,3747.1,2.66871959]
[1753496818595,0.1336,3747.3,3747.1,3.15031959]
[1753496818795,0.1336,3747.3,3747.1,0.4816]
[1753496820282,0.1336,3747.3,3747.1,3.6202145]
[1753496821402,0.1336,3747.3,3747.1,3.1503145]
[1753496821809,0.1336,3747.3,3746.8,0.6035]
[1753496822103,0.755,3747.2,3746.8,0.4816]
[1753496822397,0.1336,3747.0,3746.9,2.66887293]
[1753496822902,0.1336,3747.0,3746.8,3.15048722]
[1753496823070,0.1336,3747.0,3746.9,2.66887293]
[1753496823599,0.1336,3747.0,3746.6,2.6690576]
[1753496823946,0.48796091,3746.9,3746.7,2.66897702]
[1753496824119,0.48796091,3746.9,3746.8,2.66894416]
[1753496824264,0.1336,3746.8,3746.7,2.6690154]
[1753496826282,0.1336,3746.8,3746.4,0.4699]
[1753496826482,0.03336002,3747.0,3745.9,0.8246]
[1753496826483,0.48796269,3746.7,3746.3,2.66925369]
[1753496826717,0.1336,3746.5,3746.0,0.9515]
[1753496826875,0.1336,3746.1,3745.7,0.4816]
[1753496827077,0.48796892,3746.0,3745.4,0.4816]
[1753496827310,0.1336,3745.8,3745.4,0.4816]
[1753496827473,0.4546,3746.0,3745.2,2.67008437]
[1753496827674,0.1336,3745.6,3745.3,0.4816]
[1753496828011,0.1336,3745.6,3745.4,0.4816]
[1753496828777,0.1336,3745.6,3745.1,2.80373817]
[1753496828778,0.8884,3745.6,3745.1,0.4816]
[1753496828971,0.03337338,3745.5,3744.9,0.1336]
[1753496829178,0.03337338,3745.5,3745.0,0.4699]
[1753496829378,0.03337338,3745.5,3745.1,0.9515]
[1753496830211,0.1336,3745.3,3744.8,0.4816]
[1753496830413,0.1336,3744.9,3744.8,0.4816]
[1753496830584,0.1336,3744.9,3744.3,0.4699]
[1753496830772,0.1336,3744.9,3744.2,4.46515525]
[1753496830977,0.1336,3744.6,3744.3,0.9515]
[1753496831173,0.1336,3744.6,3744.4,0.9515]
[1753496831516,0.1336,3744.6,3744.3,0.9515]
[1753496831678,0.1336,3744.6,3744.3,0.4816]
[1753496831880,0.1336,3744.6,3744.0,3.1336]
[1753496831881,0.03338229,3744.5,3744.1,0.4816]
[1753496832105,0.03338229,3744.5,3744.1,0.9515]
[1753496832713,0.1336,3744.4,3744.1,0.4699]
[1753496833014,0.03338407,3744.3,3743.9,0.4816]
[1753496833193,0.1336,3744.2,3744.0,0.9515]
[1753496834313,0.1336,3744.2,3744.0,0.4699]
[1753496834514,0.1336,3744.2,3744.1,0.4816]
[1753496835322,0.1336,3744.2,3744.0,0.4699]
[1753496835727,0.1336,3744.2,3744.0,0.9515]
[1753496836621,3.48170639,3744.9,3744.2,2.6707975]
[1753496836622,0.8114,3744.9,3744.2,2.6707975]
[1753496836830,0.8114,3744.9,3744.3,2.67071841]
[1753496836997,0.8114,3744.9,3744.4,0.9515]
[1753496837303,0.8114,3744.9,3744.4,2.67064251]
[1753496837629,0.8114,3744.9,3744.1,0.7845]
[1753496837630,0.8114,3744.9,3744.5,0.9515]
[1753496837827,0.8114,3744.9,3744.4,2.67063189]
[1753496838034,0.8114,3744.9,3744.5,0.9515]
[1753496838195,0.8114,3744.9,3744.6,0.9515]
[1753496838726,3.43285152,3745.4,3744.7,0.9515]
[1753496838956,2.66979537,3745.7,3744.8,3.62180851]
[1753496839225,2.808,3745.3,3744.8,3.62180851]
[1753496839430,2.808,3745.3,3744.5,2.67058063]
[1753496839431,0.8221,3745.2,3744.6,0.4816]
[1753496839792,0.8221,3745.2,3744.6,3.15210713]
[1753496840016,0.8221,3745.2,3744.7,2.67043881]
[1753496840017,3.6301,3745.2,3744.7,2.67043881]
[1753496840399,3.6301,3745.2,3744.8,0.451]
[1753496840809,3.6301,3745.2,3744.7,2.6704338]
[1753496841137,0.4546,3745.1,3744.5,0.451]
[1753496841732,0.4546,3745.1,3744.1,0.451]
[1753496841908,2.67049764,3744.7,3744.1,0.451]
[1753496842109,2.807,3744.6,3743.9,3.121994]
[1753496843132,0.8221,3745.5,3744.5,2.67053415]
[1753496843443,5.47696365,3745.4,3744.6,3.59266409]
[1753496843610,5.47696365,3745.4,3744.7,0.9222]
[1753496844011,3.49198934,3745.5,3744.7,3.59263441]
[1753496844206,2.807,3745.4,3744.7,3.59263441]
[1753496844528,2.6700935,3745.2,3744.7,0.9222]
[1753496844731,2.806,3745.1,3744.8,0.451]
[1753496844942,2.806,3745.0,3744.8,0.451]
[1753496845448,2.806,3745.0,3744.8,0.9222]
[1753496846337,2.806,3745.0,3744.4,0.9222]
[1753496846505,2.806,3745.0,3744.5,2.67058264]
[1753496846701,0.1336,3744.8,3744.5,2.67058264]
[1753496846918,0.1336,3744.8,3744.5,3.59278264]
[1753496847134,0.1336,3744.8,3744.5,0.9222]
[1753496848536,0.1336,3744.8,3744.6,0.451]
[1753496848924,0.1336,3744.8,3744.7,0.9222]
[1753496849322,2.9376,3744.8,3744.7,0.9222]
[1753496850239,2.9376,3744.8,3744.4,3.59283984]
[1753496850448,2.9376,3744.8,3744.5,2.67056614]
[1753496850757,2.9376,3744.8,3744.6,0.451]
[1753496851076,1.2595,3745.5,3744.6,0.451]
[1753496851077,0.7928,3746.8,3744.8,0.8287]
[1753496851217,3.2576,3746.7,3744.9,0.9222]
[1753496851532,0.7928,3746.8,3745.4,3.0]
[1753496851727,0.7928,3746.8,3745.5,0.4712]
[1753496851728,2.803,3746.6,3745.5,0.4712]
[1753496851917,2.803,3746.6,3745.6,2.66974167]
[1753496851918,2.66918522,3746.5,3745.6,2.66974167]
[1753496852118,0.7928,3746.3,3745.1,0.8287]
[1753496852360,0.892,3746.2,3745.0,0.9222]
[1753496852654,2.66957086,3746.0,3745.2,5.67006913]
[1753496852832,3.2576,3745.9,3745.2,5.67006913]
[1753496853244,5.9271954,3745.9,3745.2,5.67006913]
[1753496853465,2.66986557,3745.6,3743.9,6.6307]
[1753496853753,0.4546,3745.5,3744.8,2.67036451]
[1753496854120,0.4546,3745.5,3744.7,3.451]
[1753496854121,0.4546,3745.5,3744.7,3.12142548]
[1753496854317,3.12448557,3745.5,3744.7,0.451]
[1753496854522,2.67009296,3745.2,3744.7,0.451]
[1753496854772,2.67009296,3745.2,3744.5,3.14172006]
[1753496855067,5.47102294,3745.3,3744.5,3.14172006]
[1753496855418,2.67008437,3745.2,3744.5,0.4712]
[1753496855620,2.67008437,3745.2,3744.5,3.1417262]
[1753496855861,2.801,3745.3,3744.5,0.4712]
[1753496856029,2.801,3745.3,3744.6,2.67045461]
[1753496856238,2.801,3745.3,3744.6,3.12145461]
[1753496856652,5.47102705,3745.3,3744.6,3.12145461]
[1753496857463,2.801,3745.3,3744.7,2.67042931]
[1753496857830,2.801,3745.3,3744.6,3.1214982]
[1753496858031,2.801,3745.3,3744.7,2.67043499]
[1753496858753,2.801,3745.3,3744.7,0.451]
[1753496859146,2.801,3745.3,3744.7,3.12142231]
[1753496861072,0.1336,3744.9,3744.7,3.12142231]
[1753496861378,0.1336,3744.9,3744.8,0.451]
[1753496863570,0.1336,3744.9,3744.8,0.9222]
[1753496863771,0.1336,3744.9,3744.6,3.12146097]
[1753496863990,0.1336,3744.9,3744.7,0.451]
[1753496864168,0.1336,3744.9,3744.7,3.59263048]
[1753496864370,0.1336,3744.9,3744.7,3.14163048]
[1753496864557,0.1336,3744.9,3744.8,0.451]
[1753496866166,0.1336,3744.9,3744.7,0.4712]
[1753496866643,0.1336,3744.9,3744.7,0.9222]
[1753496866839,0.4546,3744.8,3744.3,0.1336]
[1753496867381,0.1336,3744.9,3744.4,0.9222]
[1753496867581,0.1336,3744.9,3744.5,0.9222]
[1753496868280,0.1336,3744.9,3744.3,0.1336]
[1753496868480,0.1336,3744.9,3744.7,2.67037721]
[1753496868668,0.1336,3744.9,3744.8,0.9222]
[1753496868877,0.1336,3745.2,3744.8,1.7216]
[1753496869182,0.1336,3745.6,3745.2,2.67008437]
[1753496869367,0.1336,3745.6,3745.4,2.66989094]
[1753496869569,4.6293,3746.2,3745.6,2.66977724]
[1753496869769,0.1336,3745.7,3745.6,0.9222]
[1753496871981,2.793,3745.9,3745.6,0.9222]
[1753496872182,0.1336,3745.8,3745.5,2.66980932]
[1753496872389,0.1336,3745.8,3745.7,0.9527]
[1753496872899,0.1336,3745.8,3745.7,0.4916]
[1753496873913,0.1336,3745.8,3745.5,0.4916]
[1753496874118,2.792,3746.1,3745.6,0.9527]
[1753496874334,0.0836,3745.9,3745.8,2.66962631]
[1753496874610,2.792,3746.2,3745.8,0.9527]
[1753496874811,0.1336,3746.1,3746.0,2.66944932]
[1753496875171,0.7701,3746.6,3746.0,2.66944932]
[1753496875172,2.791,3746.4,3746.3,2.66929903]
[1753496875372,2.9246,3746.4,3746.1,2.66944288]
[1753496875676,2.9246,3746.4,3746.2,0.9527]
[1753496875867,0.49606625,3746.3,3745.8,0.4611]
[1753496876068,0.1336,3746.1,3745.8,3.13074553]
[1753496876400,0.1336,3746.1,3745.8,3.16124553]
[1753496876904,0.1336,3746.1,3745.8,3.62234553]
[1753496877907,0.1336,3746.1,3745.8,0.9527]
[1753496878202,0.1336,3746.1,3745.8,3.62235069]
[1753496878367,0.1336,3746.1,3745.8,3.13075069]
[1753496878568,0.1336,3746.1,3745.9,0.4916]
[1753496879204,0.1336,3746.1,3745.9,3.16116867]
[1753496879406,0.1336,3746.1,3745.9,0.4916]
[1753496879718,0.1336,3746.1,3746.0,0.4916]
[1753496879917,0.1336,3746.1,3746.0,3.62221414]
[1753496880071,0.1336,3746.1,3746.0,0.9527]
[1753496880279,2.79,3746.4,3746.1,2.66938023]
[1753496880593,2.9236,3746.4,3746.2,0.9527]
[1753496880792,3.3863,3746.4,3745.9,0.4611]
[1753496881013,3.3863,3746.4,3745.9,0.9527]
[1753496881180,3.3863,3746.4,3745.9,3.62223452]
[1753496881378,0.7651,3747.6,3746.4,3.8258]
[1753496881581,0.7651,3747.6,3746.5,0.9527]
[1753496881777,2.787,3747.7,3746.7,3.0]
[1753496881979,2.787,3747.7,3747.2,2.66865241]
[1753496882226,2.787,3747.7,3747.3,2.66853694]
[1753496882518,2.787,3747.7,3747.4,3.62121534]
[1753496882724,2.787,3747.7,3747.4,0.9527]
[1753496883129,2.787,3747.7,3747.4,0.4916]
[1753496883884,2.66803117,3748.1,3747.4,3.49431471]
[1753496884214,0.7651,3748.3,3747.5,2.66844563]
[1753496884215,2.786,3748.0,3747.5,2.66844563]
[1753496884415,2.786,3748.0,3747.6,2.66836314]
[1753496884603,0.4627,3748.2,3747.6,0.9527]
[1753496884808,1.2278,3749.3,3747.7,4.7785]
[1753496885007,2.66767058,3748.6,3747.7,3.49408934]
[1753496885180,1.69314667,3748.5,3747.8,2.66821049]
[1753496885384,1.69314667,3748.5,3747.5,3.36407446]
[1753496885720,1.69314667,3748.5,3747.5,0.4916]
[1753496885926,0.4627,3748.4,3747.4,1.2869]
[1753496886116,2.66807672,3748.1,3747.2,2.66860057]
[1753496886519,0.4627,3748.0,3747.1,0.4916]
[1753496886707,2.66830687,3747.7,3747.1,3.0]
[1753496887018,2.66850343,3747.5,3746.7,3.16055541]
[1753496887187,2.701859,3747.5,3746.7,3.16055541]
[1753496887524,2.66866812,3747.2,3746.4,3.16082649]
[1753496887706,0.03335913,3747.1,3746.5,2.66915129]
[1753496888327,0.03335913,3747.1,3746.6,2.66907642]
[1753496888650,0.03335913,3747.1,3746.5,2.66915129]
[1753496888849,0.03335913,3747.1,3746.4,3.4916]
[1753496889056,0.03335913,3747.1,3746.4,3.0]
[1753496889057,2.783,3747.0,3746.4,3.0]
[1753496889234,2.6689317,3746.9,3746.0,0.4611]
[1753496889435,0.0333618,3746.8,3746.1,2.66937867]
[1753496889950,0.0333618,3746.8,3746.1,3.16097867]
[1753496890357,2.70231167,3746.8,3746.1,0.4916]
[1753496890917,2.70231167,3746.8,3746.1,3.4916]
[1753496891250,2.70231167,3746.8,3746.1,3.16102663]
[1753496891417,3.13164987,3746.8,3746.1,3.16102663]
[1753496891617,0.1336,3746.4,3746.1,3.16102663]
[1753496891950,0.1336,3746.4,3746.1,3.4916]
[1753496892150,0.1336,3746.4,3746.1,3.16102586]
[1753496892524,0.1336,3746.4,3746.1,3.9527]
[1753496892719,0.1336,3746.4,3746.1,3.13054231]
[1753496893054,0.1336,3746.4,3746.2,0.4916]
[1753496893356,0.1336,3746.8,3746.5,2.66912601]
[1753496893551,3.2427,3747.0,3746.1,2.66939054]
[1753496893861,0.1336,3746.5,3746.1,2.66939054]
[1753496894045,0.1336,3746.5,3746.0,1.0863]
[1753496894360,0.1336,3746.5,3746.2,2.66932032]
[1753496894744,0.1336,3746.5,3746.4,2.66922912]
[1753496895245,0.1336,3746.5,3746.4,3.62192912]
[1753496895837,0.1336,3746.5,3746.4,0.9527]
[1753496897357,0.1336,3746.5,3746.4,3.62192912]
[1753496897664,0.1336,3746.5,3746.4,0.9527]
[1753496898463,0.1336,3746.5,3746.4,3.62192912]
[1753496898938,0.1336,3746.5,3746.4,0.9527]
[1753496899736,0.1336,3746.5,3746.2,2.66935753]
[1753496899935,0.1336,3746.5,3746.1,3.0]
[1753496900136,0.1336,3746.5,3746.3,2.66929808]
[1753496901345,0.1336,3746.5,3746.4,0.9439]
[1753496901844,0.1336,3746.5,3746.4,3.61312912]
[1753496903473,0.1336,3746.5,3746.4,0.9439]
[1753496903675,0.1336,3746.5,3746.3,2.66927583]
[1753496903971,0.1336,3746.5,3746.2,2.66936298]
[1753496904559,0.03336536,3746.4,3746.1,2.66942443]
[1753496905286,0.03336536,3746.4,3746.1,2.66941485]
[1753496905773,0.03336536,3746.4,3746.0,6.86948893]
[1753496905940,0.03336536,3746.4,3745.9,0.3289514]
[1753496905941,0.03336536,3746.4,3745.9,0.1953514]
[1753496906139,0.1336,3746.1,3745.7,4.668]
[1753496906446,0.1336,3746.1,3745.5,4.668]
[1753496906771,0.03336892,3746.0,3745.5,7.53904736]
[1753496907270,0.03336892,3746.0,3745.5,4.87713621]
[1753496907271,0.50096892,3746.0,3745.5,4.87713621]
[1753496907471,2.773,3746.1,3745.0,0.468]
[1753496907678,2.773,3746.1,3745.2,0.4759]
[1753496907679,0.1336,3745.5,3745.2,0.4759]
[1753496907852,0.1336,3745.5,3745.1,2.67013585]
[1753496908175,0.1336,3745.5,3745.1,0.19586831]
[1753496908362,2.9056,3745.5,3744.9,3.74777603]
[1753496908676,2.9056,3745.5,3745.0,3.61411459]
[1753496910578,3.731,3745.5,3745.1,0.4759]
[1753496911883,0.959,3745.5,3745.1,0.4759]
[1753496912053,2.77,3745.4,3745.1,0.4759]
[1753496912438,2.77,3745.4,3745.0,0.66851472]
[1753496912646,2.77,3745.4,3745.0,3.33873507]
[1753496912945,2.77,3745.4,3745.0,3.81463507]
[1753496913476,2.77,3745.4,3745.0,3.81459038]
[1753496915080,2.77,3745.4,3745.0,1.14441472]
[1753496915246,2.77,3745.4,3745.0,3.81463448]
[1753496915745,2.77,3745.4,3745.0,3.814641]
[1753496916658,2.77,3745.4,3745.0,1.14441472]
[1753496917280,2.77,3745.4,3745.0,3.81464101]
[1753496917657,2.77,3745.4,3745.0,3.33873872]
[1753496917840,2.77,3745.4,3745.1,0.4759]
[1753496921287,2.77,3745.4,3745.1,3.14605566]
[1753496921781,2.77,3745.4,3745.1,0.4759]
[1753496922580,2.77,3745.4,3745.2,2.67007451]
[1753496922883,2.77,3745.4,3745.3,0.9439]
[1753496923798,0.8111,3747.4,3746.9,2.66881705]
[1753496923983,0.9447,3747.4,3747.1,2.66870024]
[1753496924148,0.1336,3747.4,3746.8,0.1336]
[1753496924350,0.1336,3748.2,3747.3,0.1336]
[1753496924550,0.1336,3748.2,3747.7,0.1336]
[1753496924880,0.1336,3748.2,3747.8,0.9439]
[1753496925048,2.762,3748.1,3748.0,2.66808964]
[1753496925249,0.1336,3748.2,3748.0,2.66808964]
[1753496925466,2.762,3748.1,3748.0,2.66808964]
[1753496925910,0.1336,3748.2,3747.9,2.66815133]
[1753496926106,2.762,3748.1,3747.9,2.66815133]
[1753496926905,2.762,3748.1,3747.9,2.66814244]
[1753496927104,0.1336,3748.5,3748.3,2.66780978]
[1753496927309,0.7697,3748.9,3748.6,2.66761052]
[1753496927474,2.8946,3748.7,3748.4,0.468]
[1753496927675,2.8946,3748.7,3748.5,0.9439]
[1753496927900,2.8946,3748.7,3748.5,0.4759]
[1753496928075,0.4676,3748.6,3748.0,2.66808282]
[1753496928275,0.1336,3748.5,3748.1,2.66798095]
[1753496928706,0.1336,3748.5,3748.2,2.66788639]
[1753496928896,0.1336,3748.5,3748.3,0.9439]
[1753496929120,0.1336,3748.5,3748.4,0.9439]
[1753496929629,0.1336,3748.5,3748.4,3.61170493]
[1753496929927,2.759,3748.9,3748.4,3.61170493]
[1753496930230,2.66700846,3749.6,3748.5,3.55849891]
[1753496930392,2.8916,3749.1,3748.7,2.66752478]